bitfinex-derivatives/quotes_ETHF0:USTF0_20250329
["timestamp","ask_amount","ask_price","bid_price","bid_amount"]
[1743228294686,13.90480499,1883.5,1883.4,1.06231]
[1743228294883,13.90480499,1883.5,1883.4,3.12121]
[1743228297401,13.90480499,1883.5,1883.4,2.43421]
[1743228298501,13.90480499,1883.5,1883.4,1.06231]
[1743228299599,17.11260499,1883.5,1883.4,1.06231]
[1743228299890,13.90480499,1883.5,1883.4,1.06231]
[1743228300489,17.11260499,1883.5,1883.4,1.06231]
[1743228300697,13.90480499,1883.5,1883.4,1.06231]
[1743228300899,17.11260499,1883.5,1883.4,1.06231]
[1743228301098,13.90480499,1883.5,1883.4,1.06231]
[1743228305704,17.11260499,1883.5,1883.4,1.06231]
[1743228307707,4.68115776,1883.5,1883.4,1.06231]
[1743228308707,0.00795776,1883.5,1883.4,1.06231]
[1743228309308,0.00795776,1883.5,1883.4,7.98255453]
[1743228309518,0.00795776,1883.5,1883.4,9.43365453]
[1743228316121,0.00795776,1883.5,1883.4,9.96485453]
[1743228316324,0.00795776,1883.5,1883.4,13.17265453]
[1743228317019,0.00795776,1883.5,1883.4,9.96485453]
[1743228317321,0.00795776,1883.5,1883.4,13.17265453]
[1743228318329,10.36947491,1883.5,1883.4,13.17265453]
[1743228320420,0.00795776,1883.5,1883.4,13.17265453]
[1743228320627,5.6390974,1883.5,1883.4,13.17265453]
[1743228320828,5.30172976,1883.5,1883.4,13.17265453]
[1743228321015,5.30172976,1883.5,1883.4,16.59365453]
[1743228321520,10.36151715,1883.6,1883.5,1.06225]
[1743228321720,10.36151715,1883.6,1883.5,3.15545]
[1743228321919,10.36151715,1883.6,1883.5,9.9849704]
[1743228324028,10.36947491,1883.7,1883.6,1.0622]
[1743228324229,10.36947491,1883.7,1883.6,3.2497]
[1743228324527,10.36947491,1883.7,1883.6,10.16452465]
[1743228332035,10.36947491,1883.7,1883.6,1.0622]
[1743228332228,11.10707491,1883.7,1883.6,1.0622]
[1743228332531,15.58624491,1883.7,1883.3,9.737]
[1743228332727,2.1895,1883.6,1883.5,1.06225]
[1743228334231,1.4604,1883.6,1883.5,2.41385]
[1743228334432,0.74555776,1883.7,1883.6,1.0622]
[1743228334630,2.13515776,1883.7,1883.6,3.1303]
[1743228334831,1.39755776,1883.7,1883.6,3.1303]
[1743228336126,1.39755776,1883.7,1883.6,3.6615]
[1743228338232,1.39755776,1883.7,1883.6,2.4138]
[1743228338738,1.39755776,1883.7,1883.6,1.0622]
[1743228341334,1.39755776,1883.7,1883.6,2.4641]
[1743228343841,1.39755776,1883.7,1883.6,1.0622]
[1743228350244,15.89950857,1883.7,1883.6,1.0622]
[1743228352944,15.89950857,1883.7,1883.6,1.7522]
[1743228353341,14.50990857,1883.7,1883.6,1.7522]
[1743228355348,15.95690857,1883.7,1883.6,1.7522]
[1743228355850,13.92929841,1883.7,1883.6,1.7522]
[1743228356147,13.92929841,1883.7,1883.6,2.2834]
[1743228359440,13.92929841,1883.7,1883.6,1.7522]
[1743228359851,13.92929841,1883.7,1883.6,3.1892]
[1743228361445,12.48229841,1883.7,1883.6,3.1892]
[1743228363746,13.95149841,1883.7,1883.6,3.1892]
[1743228366348,12.48229841,1883.7,1883.6,3.1892]
[1743228369660,0.00795776,1883.7,1883.6,3.1892]
[1743228371259,1.45215776,1883.7,1883.6,3.1892]
[1743228372161,15.95410857,1883.7,1883.6,3.1892]
[1743228376362,14.3857263,1883.9,1883.8,1.06208]
[1743228376662,33.68466311,1884.0,1883.9,1.06203]
[1743228376866,33.68466311,1884.0,1883.9,3.59624399]
[1743228376867,27.67202312,1884.0,1883.9,3.59624399]
[1743228377067,24.00837312,1884.0,1883.9,10.463374]
[1743228377360,19.982812,1884.0,1883.9,25.275374]
[1743228377963,17.32777088,1884.0,1883.9,28.670374]
[1743228378770,14.67272976,1884.0,1883.9,28.670374]
[1743228378968,13.88532976,1884.0,1883.9,28.670374]
[1743228379169,11.40176393,1884.0,1883.9,28.670374]
[1743228379469,10.06416394,1884.0,1883.9,28.670374]
[1743228380672,0.00795776,1884.1,1884.0,1.06197]
[1743228380862,0.00795776,1884.1,1884.0,6.39277]
[1743228381063,0.00795776,1884.1,1884.0,13.33483328]
[1743228383871,0.00795776,1884.1,1884.0,2.51217]
[1743228384075,0.00795776,1884.1,1884.0,1.06197]
[1743228384973,1.40555776,1884.1,1884.0,1.06197]
[1743228386972,1.40555776,1884.1,1884.0,2.41467]
[1743228398581,1.40555776,1884.1,1883.8,3.2078]
[1743228398886,1.40555776,1884.1,1883.9,1.06202]
[1743228399180,1.40555776,1884.1,1883.8,3.2078]
[1743228399181,1.40555776,1884.1,1884.0,1.06197]
[1743228400484,1.40555776,1884.1,1884.0,2.40437]
[1743228404887,2.46747776,1884.1,1883.9,1.06199]
[1743228405383,1.3684,1884.0,1883.9,1.06199]
[1743228406978,1.3684,1884.0,1883.9,2.46369]
[1743228415184,1.3684,1884.0,1883.9,2.46373]
[1743228416788,1.06206,1883.9,1883.5,3.2078]
[1743228416994,2.4614,1883.8,1883.6,1.06217]
[1743228417188,1.3993,1883.7,1883.6,2.45807]
[1743228422691,2.46144,1883.7,1883.6,1.3959]
[1743228422897,1.06221,1883.6,1883.4,1.06229]
[1743228423104,3.93951,1883.6,1883.5,1.3838]
[1743228423985,2.8773,1883.6,1883.5,2.44605]
[1743228424192,3.387,1883.7,1883.6,1.0622]
[1743228424503,3.387,1883.7,1883.6,3.8658]
[1743228424696,6.5948,1883.9,1883.7,1.06213]
[1743228424995,9.10336,1883.9,1883.8,1.3838]
[1743228427102,9.10336,1883.9,1883.1,0.00795774]
[1743228427103,2.65521,1883.8,1883.1,0.00795774]
[1743228427292,1.06242,1883.2,1883.1,1.35785774]
[1743228427493,4.46342,1883.2,1883.1,0.00795774]
[1743228427694,7.22882,1883.2,1883.1,0.00795774]
[1743228429300,9.72882,1883.2,1883.1,0.00795774]
[1743228430600,7.22882,1883.2,1883.1,0.00795774]
[1743228431801,10.43662,1883.2,1883.1,0.00795774]
[1743228440814,1.06253,1883.0,1882.9,1.3597]
[1743228441810,4.27033,1883.0,1882.9,1.3597]
[1743228442909,1.06253,1883.0,1882.9,1.3597]
[1743228443113,4.27033,1883.0,1882.9,1.3597]
[1743228445419,1.06259,1882.9,1882.8,0.00795776]
[1743228445615,4.45359,1882.9,1882.8,1.41495776]
[1743228445923,4.45359,1882.9,1882.8,2.47760776]
[1743228447619,4.45359,1882.9,1882.8,1.41495776]
[1743228448520,5.93299,1882.9,1882.8,1.41495776]
[1743228451226,5.93299,1882.9,1882.8,0.00795776]
[1743228451518,2.65664,1882.8,1882.3,1.06292]
[1743228451719,3.2078,1882.6,1882.3,1.06292]
[1743228451920,3.397,1882.5,1882.3,1.06292]
[1743228452120,4.7372,1882.5,1882.3,1.06292]
[1743228452420,5.80004,1882.5,1882.3,1.06292]
[1743228452815,5.80004,1882.5,1882.3,1.46927976]
[1743228453016,1.06287,1882.4,1882.3,0.40635976]
[1743228453211,5.80006,1882.5,1882.2,1.07090776]
[1743228453417,5.80006,1882.5,1882.2,0.00795776]
[1743228453723,5.80006,1882.5,1882.2,1.07089776]
[1743228453917,1.06288,1882.4,1882.2,1.07089776]
[1743228454117,5.80006,1882.5,1882.2,1.07089776]
[1743228454721,4.7372,1882.5,1882.3,2.7945]
[1743228454919,5.80003,1882.5,1882.4,1.3847]
[1743228455322,4.7372,1882.5,1882.4,1.3847]
[1743228456519,5.80002,1882.5,1882.4,1.3847]
[1743228456817,4.7372,1882.5,1882.4,1.3847]
[1743228457024,5.80002,1882.5,1882.3,1.4098]
[1743228457223,5.80002,1882.5,1882.4,1.3912]
[1743228458818,4.7372,1882.5,1882.4,1.3912]
[1743228459030,4.7372,1882.5,1882.4,2.45407]
[1743228460124,4.7372,1882.5,1882.4,1.3912]
[1743228460428,5.80002,1882.5,1882.4,1.3912]
[1743228462927,1.06287,1882.4,1882.3,0.7037]
[1743228463135,1.06293,1882.3,1882.2,1.45645776]
[1743228463625,2.47533,1882.3,1882.2,1.45645776]
[1743228463832,5.68313,1882.3,1882.2,1e-08]
[1743228466736,8.18313,1882.3,1882.2,1e-08]
[1743228475840,5.68313,1882.3,1882.2,1e-08]
[1743228476839,8.18313,1882.3,1882.2,1e-08]
[1743228479444,9.07713,1882.3,1882.2,1e-08]
[1743228480341,9.08013,1882.3,1882.2,1e-08]
[1743228484147,9.08013,1882.3,1882.2,1.47180001]
[1743228484751,9.07813,1882.3,1882.2,1.47180001]
[1743228485751,9.07713,1882.3,1882.2,1.47180001]
[1743228487238,9.76003,1882.3,1882.2,1e-08]
[1743228487637,12.26003,1882.3,1882.2,1e-08]
[1743228489050,11.1971,1882.3,1881.7,0.6894]
[1743228489351,1.06331,1881.7,1881.5,2.1597]
[1743228489552,1.06331,1881.7,1881.6,1.4426]
[1743228489743,5.84841,1881.7,1881.6,1.4426]
[1743228490144,1.06332,1881.6,1881.5,1.4379]
[1743228490351,5.64722,1881.6,1881.5,0.7208]
[1743228490654,2.65846,1881.5,1880.8,4.27153]
[1743228490856,4.27135,1881.2,1881.1,1.4426]
[1743228492347,1.06361,1881.1,1881.0,0.7171]
[1743228492543,5.81331,1881.1,1881.0,0.7171]
[1743228492746,5.88608064,1881.1,1881.0,0.7171]
[1743228493145,0.07277064,1881.1,1881.0,1.78076]
[1743228493551,0.07277064,1881.1,1881.0,3.14366]
[1743228494352,3.2078,1881.2,1881.1,1.06361]
[1743228494551,3.2078,1881.2,1881.1,2.42651]
[1743228495050,3.415,1881.3,1881.1,2.42651]
[1743228495254,3.415,1881.3,1881.2,1.4216]
[1743228495443,1.06347,1881.4,1881.2,1.4216]
[1743228495644,4.47849,1881.3,1881.2,1.4216]
[1743228495950,7.68629,1881.3,1881.2,1.4216]
[1743228497148,1.06366,1881.0,1880.9,0.7208]
[1743228497454,4.48366,1881.0,1880.9,0.7208]
[1743228498251,3.42,1881.0,1880.9,2.091]
[1743228498557,3.42,1881.0,1880.9,3.15472]
[1743228498757,3.48996508,1881.0,1880.9,3.15472]
[1743228499455,3.48896508,1881.0,1880.9,3.15472]
[1743228501055,3.48896508,1881.0,1880.9,2.091]
[1743228501358,3.48896508,1881.0,1880.9,3.15472]
[1743228504160,0.06996508,1881.0,1880.9,3.15472]
[1743228506556,0.06996508,1881.0,1880.9,3.86182]
[1743228515671,3.2078,1881.3,1881.2,1.06355]
[1743228515870,8.0323,1881.3,1881.2,1.06355]
[1743228516463,8.0323,1881.3,1881.1,1.06361]
[1743228516663,1.3607,1881.2,1881.1,1.06361]
[1743228518767,0.6933,1881.7,1881.6,1.06332]
[1743228518963,4.7712,1881.7,1881.3,3.2078]
[1743228519276,4.7712,1881.7,1881.6,1.06332]
[1743228519886,3.405,1881.7,1881.6,1.06332]
[1743228520285,4.75625776,1881.8,1881.7,1.06327]
[1743228521574,1.34825776,1881.8,1881.7,1.06327]
[1743228521784,4.75525776,1881.8,1881.7,1.06327]
[1743228523679,1.34825776,1881.8,1881.7,1.06327]
[1743228523885,4.75325776,1881.8,1881.7,1.06327]
[1743228524885,1.34825776,1881.8,1881.7,1.06327]
[1743228531490,0.00795776,1881.8,1881.7,1.06327]
[1743228531798,1.47245776,1881.8,1881.7,1.06327]
[1743228536503,1.47245776,1881.8,1881.7,2.41937]
[1743228540304,1.47245776,1881.8,1881.7,3.14857]
[1743228545499,1.06329,1881.7,1881.4,0.532]
[1743228545799,1.3814,1881.6,1881.5,1.06334]
[1743228546206,2.0547,1881.6,1881.5,1.06334]
[1743228546904,1.3814,1881.6,1881.5,3.89624]
[1743228548207,3.40495776,1881.8,1881.7,1.06327]
[1743228548908,4.85075776,1881.8,1881.7,1.06327]
[1743228550708,1.45375776,1881.8,1881.7,1.06327]
[1743228553802,5.72480776,1881.8,1881.6,1.06332]
[1743228554199,1.3825,1881.7,1881.6,1.06332]
[1743228555908,2.44579,1881.7,1881.5,1.06334]
[1743228556115,1.3431,1881.6,1881.5,1.06334]
[1743228556417,2.775,1881.6,1881.4,3.2078]
[1743228556607,1.06338,1881.5,1881.4,3.2078]
[1743228556913,2.49528,1881.5,1881.4,3.2078]
[1743228557817,1.4319,1881.5,1881.4,4.27124]
[1743228558016,1.4319,1881.5,1881.4,5.72124]
[1743228558216,1.4319,1881.5,1881.4,6.45544]
[1743228559417,3.393,1881.7,1881.4,5.392]
[1743228559619,1.3586,1881.6,1881.5,2.40968]
[1743228562622,0.00795776,1881.8,1881.7,1.06327]
[1743228563217,1.06329,1881.7,1881.5,1.06336]
[1743228563514,3.21575776,1881.8,1881.4,0.7342]
[1743228563515,1.74014,1881.6,1881.4,1.06341]
[1743228563718,0.698,1881.5,1881.4,1.06341]
[1743228563910,2.1371,1881.5,1881.4,2.50951]
[1743228564712,2.1371,1881.5,1881.3,5.54445]
[1743228564920,2.50254,1881.4,1881.3,3.2078]
[1743228565509,1.06351,1881.3,1881.1,2.95957]
[1743228565709,0.7076,1881.2,1881.1,2.42757]
[1743228566315,0.7076,1881.2,1881.1,1.06357]
[1743228566816,1.77117,1881.2,1881.0,2.0868]
[1743228567021,2.1238,1881.1,1880.9,3.7398]
[1743228567318,1.4474,1881.0,1880.9,6.16752]
[1743228567520,1.4474,1881.0,1880.9,3.2078]
[1743228567814,1.4474,1881.0,1880.7,4.5718]
[1743228567815,4.8474,1881.0,1880.7,4.5718]
[1743228568009,1.06378,1880.8,1880.7,3.2078]
[1743228568209,1.06385,1880.7,1880.4,18.01447349]
[1743228568415,5.5823,1880.7,1880.5,1.06393]
[1743228568610,5.5823,1880.7,1880.4,16.56066362]
[1743228568816,1.06395,1880.5,1880.4,16.56066362]
[1743228569315,3.17905,1880.5,1880.4,16.56066362]
[1743228569714,3.17905,1880.5,1880.3,3.2078]
[1743228569715,1.064,1880.4,1880.3,3.2078]
[1743228569913,1.064,1880.4,1880.1,5.63353]
[1743228569914,5.9084,1880.4,1880.1,5.63353]
[1743228570220,5.9084,1880.4,1880.0,16.56066362]
[1743228570221,3.2078,1880.3,1880.0,16.56066362]
[1743228570414,3.2078,1880.3,1880.2,1.06412]
[1743228570415,4.8624,1880.3,1880.2,1.06412]
[1743228570917,4.8624,1880.3,1880.2,2.42572]
[1743228571222,1.4384,1880.3,1880.2,2.42572]
[1743228571421,1.4384,1880.3,1880.2,3.13272]
[1743228572317,1.4384,1880.3,1880.2,2.0686]
[1743228572615,1.4384,1880.3,1880.2,3.13272]
[1743228572815,1.4384,1880.3,1880.2,2.0686]
[1743228573021,1.4384,1880.3,1880.0,17.62487362]
[1743228573220,1.4384,1880.3,1880.0,18.03356362]
[1743228573421,1.4384,1880.3,1880.1,1.06413]
[1743228573618,1.4384,1880.3,1880.2,1.06412]
[1743228574017,1.4384,1880.3,1880.2,1.76622]
[1743228574319,1.4384,1880.3,1880.2,2.1328]
[1743228574516,4.6462,1880.3,1880.0,1.0642]
[1743228574712,5.3367,1880.3,1880.1,1.06417]
[1743228574917,1.4837,1880.2,1880.0,1.4307]
[1743228575116,1.4837,1880.2,1880.1,1.06417]
[1743228575331,1.06419,1880.1,1879.8,4.27212]
[1743228575522,1.4837,1880.0,1879.8,4.27212]
[1743228575716,1.4837,1880.0,1879.8,5.70282]
[1743228576618,1.4837,1880.0,1879.8,2.49502]
[1743228577825,1.4837,1880.0,1879.7,0.532]
[1743228578032,1.4837,1880.0,1879.7,1.06438]
[1743228578033,0.682,1879.9,1879.7,1.06438]
[1743228578321,0.682,1879.9,1879.6,1.4005]
[1743228578322,1.4827,1879.8,1879.6,0.7021]
[1743228578520,1.4827,1879.8,1879.3,0.02024946]
[1743228578521,4.6905,1879.8,1879.3,0.02024946]
[1743228578721,4.2723,1879.6,1879.3,0.02024946]
[1743228578917,6.02722,1879.5,1879.3,0.02024946]
[1743228579122,0.682,1879.4,1879.3,0.02024946]
[1743228579423,3.22927,1879.4,1879.3,0.02024946]
[1743228580220,7.8725,1879.4,1878.8,3.2078]
[1743228580416,5.3725,1879.4,1878.8,4.6416]
[1743228580621,5.3725,1879.4,1879.1,10.1030215]
[1743228580622,1.4827,1879.4,1879.1,10.1030215]
[1743228580922,1.4827,1879.4,1879.3,1.06463]
[1743228582024,1.4827,1879.4,1879.3,2.49843]
[1743228582428,1.4827,1879.4,1879.3,1.4338]
[1743228582828,1.4827,1879.4,1879.2,1.4135]
[1743228583028,1.4827,1879.4,1879.2,3.91198]
[1743228583239,1.4827,1879.4,1879.2,2.8473]
[1743228583430,1.4827,1879.4,1879.2,3.91196]
[1743228583630,1.4827,1879.4,1879.1,3.2078]
[1743228583929,1.4827,1879.4,1879.2,1.06464]
[1743228584129,1.4827,1879.4,1879.2,2.48824]
[1743228584324,1.4827,1879.4,1879.3,1.06463]
[1743228584519,1.4827,1879.4,1879.3,2.48823]
[1743228584727,1.4827,1879.4,1879.3,1.06463]
[1743228584930,4.6905,1879.4,1879.2,1.06464]
[1743228585232,4.6905,1879.4,1878.7,6.09060479]
[1743228585233,4.6905,1879.4,1878.6,3.2078]
[1743228585422,2.06,1879.3,1879.1,1.06472]
[1743228585617,1.3381,1879.2,1879.0,1.06474]
[1743228585929,1.3381,1879.2,1879.1,1.06474]
[1743228586128,3.531,1879.3,1879.2,1.06468]
[1743228586425,1.4064,1879.5,1879.4,1.06457]
[1743228586624,4.9394,1879.5,1879.3,1.0646]
[1743228586819,4.9394,1879.5,1879.2,1.4628]
[1743228587025,1.4064,1879.4,1879.3,1.06458]
[1743228587319,1.4064,1879.4,1879.3,2.52738]
[1743228589526,0.00797915,1879.7,1879.3,4.6706]
[1743228589731,3.53797915,1879.7,1879.6,1.06446]
[1743228590025,3.53797915,1879.7,1879.6,2.44416]
[1743228590226,6.03797915,1879.7,1879.3,6.84403617]
[1743228590431,1.06454,1879.5,1879.2,1.06467]
[1743228590738,5.6825,1879.4,1879.2,1.06467]
[1743228590931,1.4574,1879.3,1879.2,1.06467]
[1743228591130,1.4574,1879.3,1879.2,2.44437]
[1743228591329,1.4574,1879.3,1879.2,1.3797]
[1743228591724,1.4574,1879.3,1879.1,1.06471]
[1743228591725,2.52204,1879.3,1879.0,1.06476]
[1743228592131,1.4574,1879.2,1879.0,1.06476]
[1743228592633,3.536,1879.1,1879.0,1.0648]
[1743228593024,5.0166,1879.1,1879.0,1.0648]
[1743228593334,5.0166,1879.1,1878.9,3.14623]
[1743228593530,1.4806,1879.0,1878.9,3.14623]
[1743228593831,1.4806,1879.0,1878.8,0.7274]
[1743228594037,2.2225,1879.0,1878.9,1.06485]
[1743228594236,3.54,1879.1,1879.0,1.0648]
[1743228594433,5.0206,1879.1,1879.0,1.8072]
[1743228594733,5.0206,1879.1,1878.9,2.40384]
[1743228594938,1.4806,1879.0,1878.9,2.40385]
[1743228595138,1.4806,1879.0,1878.9,1.06485]
[1743228595334,3.54,1879.1,1879.0,1.0648]
[1743228597531,3.54,1879.1,1878.9,1.06482]
[1743228597732,1.4354,1879.0,1878.9,1.06482]
[1743228598739,1.4354,1879.0,1878.8,0.7274]
[1743228598939,1.4354,1879.0,1878.9,1.06485]
[1743228599841,3.54,1879.1,1878.9,1.06485]
[1743228600041,5.0006,1879.1,1879.0,1.0648]
[1743228600242,4.2979,1879.5,1879.3,1.06459]
[1743228600541,4.2979,1879.5,1879.3,1.06463]
[1743228600542,1.4606,1879.4,1879.3,1.06463]
[1743228600743,1.4606,1879.4,1879.2,1.06464]
[1743228600942,1.4606,1879.4,1879.3,1.06463]
[1743228602438,3.554,1879.5,1879.4,1.06457]
[1743228602936,1.395,1879.6,1879.5,1.06451]
[1743228603645,1.395,1879.6,1879.5,1.75081]
[1743228603843,2.45946,1879.6,1879.5,0.6863]
[1743228604040,1.395,1879.6,1879.5,0.6863]
[1743228604446,2.45946,1879.6,1879.5,0.6863]
[1743228604635,1.395,1879.6,1879.4,3.2078]
[1743228604836,1.4513,1879.5,1879.4,3.2078]
[1743228605638,1.4513,1879.5,1879.4,4.27237]
[1743228606544,1.4513,1879.5,1879.4,3.2078]
[1743228607244,3.24361,1879.5,1879.4,3.2078]
[1743228607446,2.1791,1879.5,1879.4,3.2078]
[1743228607834,2.1791,1879.5,1879.4,4.27237]
[1743228609047,2.1791,1879.5,1879.4,1.06457]
[1743228609248,1.4513,1879.5,1879.4,1.06457]
[1743228613249,4.25817915,1879.7,1879.5,1.06449]
[1743228613447,1.4605,1879.6,1879.3,0.6955]
[1743228613754,1.4605,1879.6,1879.5,1.06451]
[1743228616159,1.4605,1879.6,1879.4,2.50073]
[1743228616357,1.4605,1879.6,1879.5,1.06451]
[1743228616658,1.4605,1879.6,1879.5,2.45511]
[1743228616962,1.4605,1879.6,1879.5,1.3906]
[1743228617148,1.4605,1879.6,1879.5,2.45511]
[1743228621066,1.4605,1879.6,1879.5,1.06451]
[1743228621253,1.4605,1879.6,1879.2,0.7271]
[1743228621455,1.0647,1879.2,1879.0,4.27258]
[1743228621755,2.1599,1879.1,1879.0,4.27258]
[1743228625057,3.2078,1879.4,1879.0,3.2078]
[1743228625262,3.2078,1879.4,1879.3,1.06463]
[1743228625263,1.3592,1879.4,1879.3,1.06463]
[1743228626262,1.3592,1879.4,1879.3,2.46353]
[1743228626563,0.00797915,1879.7,1879.6,1.06446]
[1743228627052,1.47597915,1879.7,1879.6,1.06446]
[1743228627662,1.47597915,1879.7,1879.6,2.46336]
[1743228629455,1.47597915,1879.7,1879.6,3.20286]
[1743228630861,1.47597915,1879.7,1879.6,6.41066]
[1743228631170,0.7047,1880.2,1880.1,1.06417]
[1743228631367,3.543,1880.3,1880.1,1.06417]
[1743228631557,4.2324,1880.4,1880.2,1.06412]
[1743228632151,5.01029,1880.5,1880.3,1.06402]
[1743228632152,3.21577915,1880.5,1880.3,1.06402]
[1743228632368,3.94317915,1880.5,1880.1,0.53997915]
[1743228632665,3.94317915,1880.5,1880.1,2.00287915]
[1743228632864,3.94317915,1880.5,1880.4,1.064]
[1743228633068,0.73537915,1880.5,1880.4,1.064]
[1743228633655,2.14867915,1880.5,1880.4,1.064]
[1743228634057,1.42127915,1880.5,1880.4,1.064]
[1743228635778,0.00797915,1880.5,1880.4,1.064]
[1743228636162,0.00797915,1880.5,1880.4,3.0971]
[1743228640269,0.00797915,1880.5,1880.4,3.81]
[1743228641061,0.00797915,1880.5,1880.4,6.31]
[1743228641373,6.7488,1881.4,1881.3,1.06349]
[1743228641575,4.6734,1881.4,1881.3,1.06349]
[1743228641879,5.0106,1881.4,1881.3,1.06349]
[1743228642374,5.0106,1881.4,1881.0,0.6932]
[1743228642375,9.28184,1881.4,1881.2,0.00797915]
[1743228642564,8.2184,1881.4,1881.2,1.07151915]
[1743228642763,1.4398,1881.3,1881.2,0.00797915]
[1743228642959,2.50329,1881.3,1881.2,0.00797915]
[1743228644169,1.4398,1881.3,1881.2,0.00797915]
[1743228644675,1.4398,1881.3,1881.2,1.07152915]
[1743228649977,2.50329,1881.3,1881.2,0.00797915]
[1743228650680,1.4398,1881.3,1881.2,1.07152915]
[1743228650878,2.50329,1881.3,1881.2,0.00797915]
[1743228651483,2.50329,1881.3,1881.2,1.07152915]
[1743228652281,2.50329,1881.3,1881.2,0.00797915]
[1743228652471,3.19449,1881.3,1881.2,0.00797915]
[1743228655072,1.4398,1881.3,1881.2,1.07152915]
[1743228656281,2.50329,1881.3,1881.2,1.07152915]
[1743228656880,1.4398,1881.3,1881.2,1.07152915]
[1743228658378,5.936,1882.8,1881.2,9.26477915]
[1743228658571,1.4481,1881.9,1881.8,4.27101]
[1743228658775,1.4481,1881.9,1881.8,1.06321]
[1743228659178,1.4481,1881.9,1881.8,2.47541]
[1743228660578,0.00797915,1882.0,1881.9,1.06315]
[1743228660785,0.00797915,1882.0,1881.9,5.65045]
[1743228664386,0.00797915,1882.0,1881.9,3.2078]
[1743228664685,0.00797915,1882.0,1881.9,1.06315]
[1743228664890,1.45217915,1882.0,1881.9,1.06315]
[1743228665580,1.45217915,1882.0,1881.9,4.27095]
[1743228669582,4.99717915,1882.0,1881.9,4.27095]
[1743228669780,6.06027915,1882.0,1881.9,3.2078]
[1743228670177,4.99717915,1882.0,1881.9,3.2078]
[1743228670377,4.99717915,1882.0,1881.9,4.27095]
[1743228670780,6.06027915,1882.0,1881.9,3.2078]
[1743228673179,1.06338,1881.5,1881.2,3.21577915]
[1743228673481,1.06338,1881.5,1881.3,2.43478]
[1743228673686,1.4115,1881.4,1881.3,2.43478]
[1743228673877,2.47494,1881.4,1881.3,1.3713]
[1743228674073,2.47494,1881.4,1881.2,4.27932915]
[1743228674274,1.4115,1881.3,1881.2,5.65062915]
[1743228675080,1.4115,1881.3,1881.2,4.58707915]
[1743228675477,1.4115,1881.3,1881.2,5.65062915]
[1743228677084,3.54,1881.5,1881.3,1.06347]
[1743228677285,6.00119,1881.5,1881.3,2.45977]
[1743228677587,6.00119,1881.5,1881.3,1.3963]
[1743228677781,6.00119,1881.5,1881.2,4.27928915]
[1743228677782,4.60339,1881.5,1881.4,1.3905]
[1743228678693,3.54,1881.5,1881.4,4.5983]
[1743228679581,3.54,1881.5,1881.4,5.66174]
[1743228679781,1.06328,1881.7,1881.5,1.06337]
[1743228679982,1.06328,1881.7,1881.5,2.45387]
[1743228680186,1.06328,1881.7,1881.6,1.3905]
[1743228681391,7.80504,1881.8,1881.6,2.4538]
[1743228681889,1.06327,1881.7,1881.5,1.75366]
[1743228682286,6.7418,1881.8,1881.3,0.6836]
[1743228682486,1.06344,1881.4,1881.2,4.96958915]
[1743228682692,1.06349,1881.3,1881.2,3.21577915]
[1743228682888,1.76769,1881.3,1881.2,3.21577915]
[1743228691993,1.76769,1881.3,1881.2,4.68027915]
[1743228692799,1.06349,1881.3,1881.2,4.68027915]
[1743228693601,3.526,1881.4,1881.2,5.74379915]
[1743228693794,4.58944,1881.4,1881.3,2.0945]
[1743228693994,4.58944,1881.4,1881.3,2.8351]
[1743228694195,1.06344,1881.4,1881.3,2.8351]
[1743228694997,2.44004,1881.4,1881.3,2.8351]
[1743228697905,1.06349,1881.3,1881.2,0.00797915]
[1743228698108,2.42289,1881.3,1881.2,0.00797915]
[1743228701806,1.06378,1880.8,1880.7,3.7398]
[1743228702010,1.06383,1880.7,1880.6,2.9027]
[1743228702202,2.54513,1880.7,1880.6,0.7342]
[1743228702409,1.064,1880.4,1880.3,2.1535]
[1743228702607,1.064,1880.4,1880.3,2.8877]
[1743228702908,0.00797915,1880.5,1880.3,2.8877]
[1743228703110,1.07192915,1880.5,1880.4,1.4624]
[1743228703802,0.00797915,1880.5,1880.4,2.5264]
[1743228704302,0.00797915,1880.5,1880.4,1.4624]
[1743228704303,1.07192915,1880.5,1880.4,1.4624]
[1743228704503,2.55322915,1880.5,1880.4,1.4624]
[1743228708210,2.55322915,1880.5,1880.3,2.48935]
[1743228708417,2.4917,1880.4,1880.3,2.866]
[1743228708609,2.4917,1880.4,1880.3,3.93006]
[1743228708910,2.4917,1880.4,1880.3,2.866]
[1743228710410,2.4917,1880.4,1880.3,6.0738]
[1743228711117,0.00797915,1880.5,1880.3,6.0738]
[1743228711318,1.07194915,1880.5,1880.4,1.4028]
[1743228711613,2.41284915,1880.5,1880.4,1.4028]
[1743228715410,1.34887915,1880.5,1880.4,2.4668]
[1743228715615,0.00797915,1880.5,1880.4,2.4668]
[1743228720114,3.51,1881.0,1880.6,1.06385]
[1743228720319,3.51,1881.0,1880.7,3.9151]
[1743228720320,1.06379,1880.8,1880.7,3.9151]
[1743228720513,1.06379,1880.8,1880.7,5.2851]
[1743228720713,2.42886,1880.9,1880.7,5.2851]
[1743228720914,2.42886,1880.9,1880.8,1.37]
[1743228721214,3.51,1881.0,1880.4,4.57596]
[1743228721215,1.06391,1880.6,1880.4,4.57596]
[1743228721420,1.06386,1880.7,1880.5,1.06393]
[1743228721623,1.06386,1880.7,1880.5,5.64173]
[1743228722015,1.06386,1880.7,1880.6,1.37]
[1743228722216,1.06381,1880.8,1880.6,2.43389]
[1743228722517,0.00797915,1881.0,1880.7,4.5778]
[1743228722821,0.00797915,1881.0,1880.9,4.27152]
[1743228723014,0.7098,1881.5,1881.4,1.06344]
[1743228723327,1.06342,1881.5,1881.3,3.2078]
[1743228723526,1.79032,1881.5,1881.3,4.27128]
[1743228723722,0.7269,1881.5,1881.4,1.06344]